bitfinex-derivatives/quotes_BTCF0:USTF0_20210406
["timestamp","ask_amount","ask_price","bid_price","bid_amount"]
[1617674672739,0.2,58745.0,58708.0,0.55882559]
[1617674672740,3.3074,58732.0,58728.0,0.35924502]
[1617674672904,1.5,58731.0,58728.0,0.35924502]
[1617674673112,1.5,58731.0,58722.0,0.35925561]
[1617674673403,1.0,58729.0,58717.0,0.35929279]
[1617674673621,1.0,58723.0,58717.0,0.35929279]
[1617674673861,1.0,58718.0,58717.0,0.35929279]
[1617674674043,1.0,58718.0,58698.0,1.0356999]
[1617674674045,1.0,58718.0,58715.0,0.35931979]
[1617674674046,4.60314,58718.0,58715.0,0.35931979]
[1617674674218,4.71039655,58718.0,58715.0,0.35931979]
[1617674674417,4.71039655,58718.0,58712.0,0.35932666]
[1617674674607,6.21039655,58718.0,58712.0,0.35932666]
[1617674674904,1.0,58716.0,58712.0,0.06036167]
[1617674675104,1.0,58716.0,58711.0,0.002]
[1617674675105,1.0,58713.0,58711.0,0.002]
[1617674675604,1.0,58712.0,58711.0,0.002]
[1617674676206,1.10725655,58712.0,58711.0,0.002]
[1617674676504,0.10725655,58712.0,58711.0,0.002]
[1617674677305,1.10725655,58712.0,58711.0,0.002]
[1617674677605,1.10725655,58712.0,58711.0,0.42169498]
[1617674678006,1.10725655,58712.0,58711.0,0.06236105]
[1617674678405,0.10725655,58712.0,58711.0,0.06236105]
[1617674679005,2.60805655,58712.0,58711.0,0.06236105]
[1617674679306,2.60805655,58712.0,58711.0,0.42169363]
[1617674679510,2.5008,58712.0,58711.0,0.42169363]
[1617674680207,2.5008,58712.0,58711.0,0.96809066]
[1617674680806,2.66494,58712.0,58711.0,0.96809066]
[1617674681107,2.66494,58712.0,58711.0,0.42169363]
[1617674682206,2.66494,58712.0,58711.0,0.06236105]
[1617674682552,2.86414,58712.0,58711.0,0.02186105]
[1617674682727,2.86414,58712.0,58707.0,0.35922581]
[1617674682728,2.8771,58711.0,58707.0,0.35922581]
[1617674682911,0.2,58709.0,58707.0,0.35922581]
[1617674683107,1.7,58708.0,58689.0,0.35725677]
[1617674683606,1.7,58708.0,58686.0,0.35727221]
[1617674684108,1.7,58708.0,58658.0,0.69469597]
[1617674684109,0.10725655,58696.0,58684.0,0.35727438]
[1617674684307,0.27030655,58696.0,58685.0,0.35727922]
[1617674685210,0.27030655,58696.0,58686.0,0.35726777]
[1617674685709,0.27030655,58696.0,58687.0,0.35726508]
[1617674686110,0.27030655,58696.0,58683.0,0.43665732]
[1617674686111,0.10725655,58688.0,58683.0,0.35727]
[1617674687014,0.10725655,58688.0,58686.0,0.35726743]
[1617674687614,3.3464,58687.0,58686.0,0.35726743]
[1617674687914,3.3464,58687.0,58685.0,0.35726001]
[1617674687915,3.49747,58687.0,58685.0,0.35726001]
[1617674688115,3.49747,58687.0,58682.0,0.35728369]
[1617674688314,4.49747,58687.0,58682.0,0.35728369]
[1617674688515,1.0,58683.0,58682.0,0.35728369]
[1617674688815,1.0,58683.0,58681.0,0.35728554]
[1617674689015,1.0,58683.0,58678.0,0.35728658]
[1617674689217,3.49747,58687.0,58678.0,0.35728658]
[1617674689516,3.49747,58687.0,58679.0,0.35728627]
[1617674689717,1.0,58683.0,58679.0,0.4176651]
[1617674689918,1.0,58680.0,58679.0,0.4176651]
[1617674690118,1.10725655,58680.0,58679.0,0.4176651]
[1617674690317,1.10725655,58680.0,58675.0,0.35731836]
[1617674690318,0.10725655,58680.0,58675.0,0.35731836]
[1617674690718,0.10725655,58680.0,58673.0,0.46457519]
[1617674691119,0.10725655,58680.0,58674.0,0.35732015]
[1617674691519,0.10725655,58680.0,58675.0,0.35730776]
[1617674692018,0.10725655,58680.0,58676.0,0.35730854]
[1617674692218,0.10725655,58680.0,58679.0,0.10725655]
[1617674693019,3.5792,58696.0,58679.0,0.52546806]
[1617674693519,3.5792,58696.0,58683.0,0.35781932]
[1617674693920,3.5792,58696.0,58682.0,0.35782208]
[1617674694120,3.68776,58696.0,58692.0,0.10725655]
[1617674694822,0.0508,58695.0,58692.0,0.10725655]
[1617674695221,0.0508,58695.0,58669.0,1.0]
[1617674695222,0.0508,58695.0,58674.0,0.35693165]
[1617674695622,0.0505,58692.0,58674.0,0.35693165]
[1617674695823,1.0,58691.0,58674.0,0.35693165]
[1617674696033,1.0,58691.0,58667.0,0.5757695]
[1617674696035,1.0,58691.0,58672.0,0.35693568]
[1617674696328,1.0,58690.0,58679.0,0.10725655]
[1617674696624,1.0,58687.0,58679.0,0.10725655]
[1617674697532,1.0,58688.0,58679.0,0.10725655]
[1617674697725,3.5768,58680.0,58679.0,0.10725655]
[1617674698327,3.68405655,58680.0,58679.0,0.10725655]
[1617674698527,0.10725655,58680.0,58679.0,0.10725655]
[1617674702029,3.5838,58685.0,58679.0,0.10725655]
[1617674704331,0.10725655,58681.0,58679.0,0.10725655]
[1617674705535,3.5838,58685.0,58679.0,0.10725655]
[1617674705747,3.5838,58685.0,58679.0,0.24836655]
[1617674706736,3.5838,58685.0,58679.0,1.24836655]
[1617674706936,1.0,58709.0,58679.0,1.6051158]
[1617674707137,2.9462,58715.0,58684.0,1.0]
[1617674707367,2.9462,58715.0,58690.0,1.0]
[1617674707885,2.9462,58715.0,58684.0,0.35672233]
[1617674708037,2.9462,58715.0,58688.0,0.3567053]
[1617674708237,2.9462,58715.0,58705.0,0.10725655]
[1617674708456,2.9462,58715.0,58695.0,0.10773]
[1617674709500,1.0,58720.0,58695.0,0.10773]
[1617674709688,0.00966341,58728.0,58695.0,0.10773]
[1617674709689,0.00966341,58728.0,58708.0,1.0]
[1617674709845,3.2343,58731.0,58708.0,1.0]
[1617674709846,3.2343,58731.0,58708.0,1.14102]
[1617674710109,3.2343,58731.0,58718.0,1.0]
[1617674710260,0.00967404,58733.0,58730.0,0.10725655]
[1617674710542,0.2,58769.0,58730.0,0.24375655]
[1617674710543,0.00969006,58743.0,58730.0,0.24375655]
[1617674711042,0.28791956,58744.0,58730.0,0.24375655]
[1617674711043,0.00969176,58744.0,58730.0,0.24375655]
[1617674712044,0.00969465,58745.0,58730.0,0.24375655]
[1617674712444,0.28805596,58746.0,58742.0,0.10725655]
[1617674712445,0.00969587,58746.0,58742.0,0.10725655]
[1617674712645,0.00969587,58746.0,58742.0,0.25814655]
[1617674712844,0.00970337,58751.0,58742.0,0.25814655]
[1617674713344,0.00970723,58753.0,58742.0,0.25814655]
[1617674713744,1.0,58750.0,58742.0,0.25814655]
[1617674714245,0.0097008,58749.0,58742.0,0.25814655]
[1617674714544,0.10725655,58743.0,58742.0,0.15089]
[1617674716345,0.10725655,58743.0,58742.0,0.25814655]
[1617674717549,0.10725655,58743.0,58742.0,0.15089]
[1617674717848,0.10725655,58743.0,58739.0,3.2064]
[1617674719889,0.10725655,58743.0,58737.0,0.10725655]
[1617674720095,0.20758655,58743.0,58737.0,0.10725655]
[1617674720278,0.20758655,58743.0,58722.0,1.0]
[1617674720633,0.20758655,58743.0,58729.0,0.10725655]
[1617674720783,1.0,58742.0,58729.0,0.10725655]
[1617674720951,1.7,58741.0,58729.0,0.10725655]
[1617674721251,1.0,58732.0,58729.0,0.10725655]
[1617674721853,1.0,58738.0,58729.0,0.10725655]
[1617674722151,1.5,58741.0,58729.0,0.10725655]
[1617674722152,0.00968563,58741.0,58729.0,0.10725655]
[1617674722351,0.10725655,58737.0,58729.0,0.10725655]
[1617674723554,2.5526,58748.0,58729.0,0.10725655]
[1617674723753,2.5526,58748.0,58729.0,0.25429655]
[1617674724353,0.28792478,58751.0,58747.0,0.10725655]
[1617674724354,0.0096885,58751.0,58747.0,0.10725655]
[1617674724554,0.0096885,58751.0,58747.0,0.26879655]
[1617674724855,1.42216912,58760.0,58747.0,0.26879655]
[1617674724856,0.00969092,58753.0,58747.0,0.26879655]
[1617674725256,0.28794517,58754.0,58747.0,0.26879655]
[1617674725257,0.00969392,58754.0,58747.0,0.26879655]
[1617674725757,0.0097039,58753.0,58747.0,0.26879655]
[1617674725956,0.0097039,58753.0,58747.0,0.10725655]
[1617674726165,0.00970181,58751.0,58747.0,0.10725655]
[1617674726367,0.10725655,58748.0,58747.0,0.10725655]
[1617674729657,0.00969818,58751.0,58747.0,0.10725655]
[1617674729860,0.00969818,58751.0,58747.0,0.21058655]
[1617674730057,0.0097028,58755.0,58747.0,0.21058655]
[1617674730564,0.48043286,58769.0,58747.0,0.21058655]
[1617674730565,0.48043286,58769.0,58754.0,0.10725655]
[1617674730566,0.00970596,58757.0,58754.0,0.10725655]
[1617674731586,0.00970219,58758.0,58754.0,0.10725655]
[1617674731960,0.00971036,58756.0,58754.0,0.10725655]
[1617674732259,0.00971763,58757.0,58754.0,0.10725655]
[1617674732459,0.11697418,58757.0,58754.0,0.10725655]
[1617674732660,0.00971763,58757.0,58754.0,0.10725655]
[1617674733061,0.00973441,58764.0,58754.0,0.10725655]
[1617674733260,0.00973441,58764.0,58757.0,3.0414]
[1617674733561,0.34706543,58768.0,58757.0,3.0414]
[1617674733562,0.00974262,58768.0,58760.0,1.0]
[1617674733860,0.00974262,58768.0,58762.0,1.0]
[1617674734061,0.00975883,58771.0,58762.0,1.0]
[1617674734462,0.00975883,58771.0,58770.0,0.10725655]
[1617674734861,0.29023004,58772.0,58770.0,0.10725655]
[1617674735364,0.29018451,58771.0,58770.0,0.10725655]
[1617674735662,0.00977408,58774.0,58770.0,0.10725655]
[1617674736264,0.00977858,58775.0,58770.0,0.10725655]
[1617674736677,0.29054975,58776.0,58770.0,0.10725655]
[1617674736678,0.10725655,58779.0,58771.0,1.0]
[1617674736868,0.00974826,58782.0,58771.0,1.0]
[1617674737066,0.34755923,58786.0,58771.0,1.0]
[1617674737067,0.00975578,58785.0,58771.0,1.0]
[1617674737472,0.00975578,58785.0,58770.0,0.10725655]
[1617674738082,0.00975257,58782.0,58770.0,0.10725655]
[1617674738278,0.00975257,58782.0,58757.0,1.0]
[1617674738279,1.50975257,58782.0,58757.0,1.0]
[1617674738481,1.50975257,58782.0,58744.0,0.83704473]
[1617674738482,1.0,58771.0,58752.0,0.10725655]
[1617674738670,1.0,58764.0,58752.0,0.10725655]
[1617674740578,0.10725655,58753.0,58752.0,0.10725655]
[1617674741076,0.10725655,58753.0,58752.0,3.54515655]
[1617674742040,0.00970456,58767.0,58752.0,3.74515655]
[1617674742188,0.00970456,58767.0,58753.0,1.0]
[1617674742416,0.00970943,58770.0,58754.0,0.2]
[1617674742604,0.00970943,58770.0,58769.0,0.10725655]
[1617674743073,0.28849514,58771.0,58769.0,0.24249655]
[1617674743074,0.00970913,58771.0,58769.0,0.24249655]
[1617674743391,0.00970246,58778.0,58769.0,0.24249655]
[1617674743772,0.0097046,58780.0,58769.0,0.24249655]
[1617674744172,0.00969619,58779.0,58769.0,0.10725655]
[1617674744573,0.10725655,58770.0,58769.0,0.10725655]
[1617674745176,0.10725655,58770.0,58769.0,2.80185655]
[1617674746575,0.10725655,58775.0,58769.0,2.80185655]
[1617674746876,0.10725655,58775.0,58769.0,0.26497655]
[1617674747783,0.10725655,58775.0,58769.0,0.10725655]
[1617674750379,0.10725655,58775.0,58763.0,2.532]
[1617674750579,0.10725655,58764.0,58763.0,2.532]
[1617674751183,0.10725655,58764.0,58756.0,0.10725655]
[1617674752684,2.5418,58768.0,58756.0,0.10725655]
[1617674752685,0.10725655,58757.0,58756.0,0.10725655]
[1617674752934,0.10725655,58757.0,58743.0,0.4503]
[1617674752935,0.22865655,58757.0,58743.0,0.4503]
[1617674753488,1.5,58756.0,58743.0,0.4503]
[1617674753936,1.0,58750.0,58743.0,0.4503]
[1617674754690,0.10725655,58745.0,58743.0,0.4503]
[1617674754889,0.22924655,58745.0,58743.0,0.4503]
[1617674755391,1.0,58744.0,58743.0,0.4503]
[1617674756191,1.0,58744.0,58733.0,0.10725655]
[1617674756605,0.10725655,58734.0,58733.0,0.10725655]
[1617674757591,1.0,58746.0,58733.0,0.10725655]
[1617674757789,1.0,58746.0,58733.0,0.21772655]
[1617674758192,1.0,58748.0,58733.0,0.21772655]
[1617674758593,1.0,58754.0,58747.0,0.10725655]
[1617674758797,1.0,58761.0,58747.0,0.10725655]
[1617674758993,1.0,58761.0,58747.0,0.22335655]
[1617674759196,0.0096583,58766.0,58748.0,0.2]
[1617674759596,0.34435173,58771.0,58748.0,0.2]
[1617674759597,0.00966472,58771.0,58748.0,0.2]
[1617674759795,0.00966472,58771.0,58761.0,3.3322]
[1617674759996,0.00967529,58769.0,58761.0,3.48156]
[1617674760596,0.10725655,58762.0,58761.0,3.48156]
[1617674763201,1.10725655,58762.0,58761.0,0.14936]
[1617674763402,1.10725655,58762.0,58749.0,2.8085]
[1617674763804,1.0,58759.0,58749.0,2.8085]
[1617674764002,0.10725655,58762.0,58749.0,2.8085]
[1617674764202,1.0,58757.0,58749.0,2.8085]
[1617674764402,0.10725655,58762.0,58749.0,2.8085]
[1617674764403,1.0,58754.0,58749.0,2.8085]
[1617674764602,0.10725655,58750.0,58749.0,2.8085]
[1617674764834,0.10725655,58750.0,58737.0,0.4776]
[1617674765005,1.10725655,58750.0,58737.0,0.4776]
[1617674765318,1.0,58741.0,58737.0,0.4776]
[1617674765531,1.1468,58741.0,58737.0,0.4776]
[1617674765727,0.1468,58741.0,58737.0,0.7771657]
[1617674766112,1.1468,58741.0,58737.0,0.7771657]
[1617674766333,0.1468,58741.0,58737.0,0.7771657]
[1617674766606,1.10725655,58738.0,58737.0,0.4776]
[1617674774715,2.60725655,58738.0,58733.0,0.29967026]
[1617674774916,2.60725655,58738.0,58731.0,0.29967922]
[1617674775315,2.60725655,58738.0,58728.0,0.35961506]
[1617674775316,1.0,58734.0,58728.0,0.29968587]
[1617674775517,1.0,58732.0,58728.0,0.29968587]
[1617674775716,1.5,58731.0,58728.0,0.29968587]
[1617674775916,1.5,58731.0,58725.0,0.35962305]
[1617674775917,1.5,58731.0,58725.0,0.29970259]
[1617674775918,1.0,58729.0,58725.0,0.29970259]
[1617674776116,1.5,58728.0,58725.0,0.29970259]
[1617674776316,1.5,58728.0,58717.0,0.43956379]
[1617674776317,1.5,58728.0,58721.0,0.2997299]
[1617674776552,1.10172,58729.0,58721.0,0.2997299]
[1617674776729,0.10725655,58722.0,58721.0,0.2997299]
[1617674776918,0.10725655,58722.0,58720.0,0.29971592]
[1617674777334,0.10725655,58722.0,58717.0,0.46691565]
[1617674777335,0.10725655,58722.0,58721.0,0.29972393]
[1617674777722,0.10725655,58722.0,58717.0,0.10725655]
[1617674777723,0.10725655,58722.0,58720.0,0.29971798]
[1617674778121,0.10725655,58722.0,58721.0,0.29971577]
[1617674779023,1.0,58732.0,58721.0,0.29971577]
[1617674779024,1.0,58732.0,58721.0,0.65935693]
[1617674779221,0.00966974,58735.0,58721.0,0.65935693]
[1617674779423,1.28731588,58736.0,58727.0,0.29969516]
[1617674779424,1.0,58736.0,58727.0,0.29969516]
[1617674779923,1.0,58736.0,58728.0,0.29969087]
[1617674780324,1.0,58736.0,58721.0,0.43954661]
[1617674780325,1.0,58736.0,58726.0,0.35962867]
[1617674780726,0.10725655,58727.0,58726.0,0.46688522]
[1617674780925,0.21790655,58727.0,58726.0,0.35962867]
[1617674781325,0.21790655,58727.0,58722.0,0.35965452]
[1617674781527,1.5,58726.0,58722.0,0.35965452]
[1617674781728,1.5,58726.0,58719.0,2.7233]
[1617674782825,0.10725655,58720.0,58719.0,2.7233]
[1617674783025,0.10725655,58720.0,58714.0,0.35967768]
[1617674783226,0.10725655,58720.0,58717.0,0.29973353]
[1617674783627,1.0,58719.0,58713.0,0.29917193]
[1617674784026,1.0,58718.0,58712.0,0.29917629]
[1617674784231,1.5,58717.0,58712.0,0.29917629]
[1617674784427,1.0,58714.0,58712.0,0.29917629]
[1617674784626,5.27654,58714.0,58712.0,0.29917629]
[1617674784853,1.10725655,58713.0,58712.0,0.29917629]
[1617674785046,1.10725655,58713.0,58709.0,0.81551222]
[1617674785047,1.60725655,58713.0,58709.0,0.29918722]
[1617674785426,1.60725655,58713.0,58705.0,0.2992403]
[1617674785427,1.0,58710.0,58705.0,0.2992403]
[1617674785727,1.5,58709.0,58705.0,0.2992403]
[1617674786027,1.5,58709.0,58682.0,1.03868189]
[1617674786028,1.0,58706.0,58695.0,0.29898899]
[1617674786428,1.0,58706.0,58696.0,0.29898788]
[1617674786627,1.0,58701.0,58696.0,0.29898788]
[1617674786830,1.13125,58701.0,58697.0,0.29899018]
[1617674787229,1.13125,58701.0,58694.0,0.35878545]
[1617674787435,1.13125,58701.0,58693.0,0.10725655]
[1617674787436,1.13125,58701.0,58696.0,0.3587771]
[1617674787629,0.13125,58701.0,58696.0,0.3587771]
[1617674787834,1.0,58703.0,58696.0,0.3587771]
[1617674788032,1.0,58713.0,58696.0,0.5133771]
[1617674788331,1.0,58717.0,58703.0,2.9481]
[1617674788532,1.0,58719.0,58703.0,2.9481]
[1617674788831,1.0,58719.0,58713.0,0.10725655]
[1617674789632,1.0,58719.0,58703.0,2.9481]
[1617674789852,2.5,58718.0,58701.0,0.35874512]
[1617674790133,1.0,58705.0,58701.0,0.35874512]
[1617674790332,1.13016,58705.0,58701.0,0.35874512]
[1617674790534,1.13016,58705.0,58697.0,0.35877275]
[1617674790935,1.13016,58705.0,58694.0,0.35878121]
[1617674790936,0.10725655,58698.0,58694.0,0.35878121]
[1617674791335,0.10725655,58698.0,58695.0,0.35877096]
[1617674791736,0.10725655,58698.0,58697.0,0.35876733]
[1617674792150,0.10725655,58698.0,58693.0,0.54574995]
[1617674792151,0.10725655,58698.0,58696.0,0.35877314]
[1617674792349,0.22227655,58698.0,58696.0,0.35877314]
[1617674792638,0.22227655,58698.0,58694.0,0.0603676]
[1617674792639,0.22227655,58698.0,58695.0,0.35877236]
[1617674793039,0.22227655,58698.0,58694.0,0.35877835]
[1617674793444,0.22227655,58698.0,58693.0,0.46603341]
[1617674793940,0.22227655,58698.0,58694.0,0.35877797]
[1617674794358,0.22227655,58698.0,58693.0,0.10725655]
[1617674794359,0.22227655,58698.0,58696.0,0.35877128]
[1617674794360,0.10725655,58698.0,58696.0,0.35877128]
[1617674794842,0.10725655,58698.0,58697.0,0.3587711]
[1617674795141,0.10725655,58698.0,58697.0,0.41913753]
[1617674795743,0.10725655,58698.0,58694.0,0.06036698]
[1617674795942,0.26604655,58698.0,58694.0,0.06036698]
[1617674796243,0.26604655,58698.0,58693.0,0.10725655]
[1617674799750,0.10725655,58698.0,58693.0,0.10725655]
[1617674800147,0.10725655,58698.0,58694.0,0.0503]
[1617674800346,0.10725655,58698.0,58694.0,0.20464]
[1617674800552,0.10725655,58698.0,58694.0,0.5627844]
[1617674800948,0.10725655,58704.0,58694.0,0.5627844]
[1617674801148,0.10725655,58704.0,58695.0,0.41850577]
[1617674801847,0.10725655,58704.0,58695.0,0.06036408]
[1617674802350,0.10725655,58704.0,58693.0,0.46541918]
[1617674802548,0.25210655,58704.0,58693.0,0.46541918]
[1617674802998,0.25210655,58704.0,58675.0,3.4235]
[1617674802999,1.10725655,58694.0,58692.0,0.35816456]
[1617674803381,1.10725655,58694.0,58688.0,0.3581752]
[1617674803382,3.91705655,58694.0,58688.0,0.3581752]
[1617674803777,3.91705655,58694.0,58682.0,0.4801]
[1617674803778,3.91705655,58694.0,58685.0,0.35818182]
[1617674804390,3.91705655,58694.0,58686.0,0.3581823]
[1617674804854,3.91705655,58694.0,58686.0,0.06037099]
[1617674805052,3.8098,58694.0,58691.0,0.10725655]
[1617674805251,2.8098,58694.0,58691.0,0.10725655]
[1617674805551,1.5,58703.0,58691.0,0.10725655]
[1617674806053,0.0505,58702.0,58691.0,0.10725655]
[1617674806252,1.5,58703.0,58691.0,0.10725655]
[1617674806451,1.0,58692.0,58691.0,0.10725655]
[1617674806853,1.0,58709.0,58691.0,0.10725655]
[1617674807054,1.0,58709.0,58701.0,0.10725655]
[1617674807257,1.5,58709.0,58701.0,0.10725655]
[1617674807457,1.0,58702.0,58701.0,0.10725655]
[1617674807656,1.0,58702.0,58687.0,2.84982321]
[1617674807858,1.0,58703.0,58687.0,2.84982321]
[1617674808157,1.5,58709.0,58687.0,2.84982321]
[1617674808158,1.0,58701.0,58687.0,2.4921]
[1617674808758,1.0,58704.0,58687.0,2.4921]
[1617674809058,0.0515,58706.0,58703.0,0.10725655]
[1617674809257,1.0,58707.0,58703.0,0.10725655]
[1617674809457,1.0,58709.0,58703.0,0.10725655]
[1617674809757,1.0,58707.0,58703.0,0.10725655]
[1617674811059,0.10725655,58704.0,58703.0,0.10725655]
[1617674811358,0.10725655,58704.0,58690.0,0.35844939]
[1617674812059,0.10725655,58704.0,58687.0,2.4921]
[1617674812060,0.10725655,58704.0,58689.0,0.35845812]
[1617674812359,0.21407655,58704.0,58689.0,0.35845812]
[1617674812960,0.21407655,58704.0,58703.0,0.10725655]
[1617674813360,0.10725655,58704.0,58703.0,3.14165655]
[1617674813562,0.0096251,58717.0,58703.0,3.29195655]
[1617674813804,0.00963313,58719.0,58703.0,3.29195655]
[1617674814261,1.0,58720.0,58703.0,3.29195655]
[1617674815161,0.10725655,58704.0,58703.0,3.29195655]
[1617674816065,1.0,58720.0,58703.0,3.29195655]
[1617674817063,1.0,58720.0,58713.0,0.10725655]
[1617674817666,1.0,58720.0,58703.0,3.1847]
[1617674818265,1.0,58720.0,58703.0,3.0344]
[1617674819068,1.0,58720.0,58708.0,0.10725655]
[1617674820372,0.00970098,58717.0,58708.0,0.10725655]
[1617674820976,0.00970098,58717.0,58716.0,0.10725655]
[1617674821175,0.0516,58717.0,58716.0,0.10725655]
[1617674821372,0.28824387,58718.0,58716.0,0.10725655]
[1617674821573,0.00970812,58717.0,58716.0,0.10725655]
[1617674822990,0.11696467,58717.0,58716.0,0.10725655]
[1617674823377,0.10725655,58717.0,58716.0,0.10725655]
[1617674824280,0.11696613,58717.0,58716.0,0.10725655]
[1617674825177,0.10725655,58717.0,58716.0,0.10725655]
[1617674828684,0.00971201,58718.0,58716.0,0.10725655]
[1617674828884,0.00972177,58720.0,58717.0,3.621]
[1617674829408,0.10725655,58732.0,58717.0,3.621]
[1617674829409,0.00973067,58726.0,58717.0,3.621]
[1617674829784,0.10725655,58732.0,58719.0,0.35968111]
[1617674829785,0.0097375,58731.0,58719.0,0.35968111]
[1617674830185,0.00972729,58727.0,58716.0,0.10725655]
[1617674830584,0.00971614,58726.0,58716.0,0.10725655]
[1617674831084,0.10725655,58717.0,58716.0,0.10725655]
[1617674831586,0.10725655,58717.0,58716.0,0.46719009]
[1617674832185,0.10725655,58717.0,58716.0,0.90791014]
[1617674832984,0.10725655,58717.0,58716.0,0.9682663]
[1617674833787,0.10725655,58717.0,58716.0,0.52754625]
[1617674834486,0.00974393,58722.0,58716.0,0.52754625]
[1617674834692,0.00974393,58722.0,58716.0,1.52754625]
[1617674834908,0.28951764,58724.0,58721.0,2.5825]
[1617674834909,0.00974425,58724.0,58721.0,2.5825]
[1617674835086,0.00974425,58724.0,58723.0,0.10725655]
[1617674835287,0.00975633,58729.0,58723.0,0.10725655]
[1617674835590,0.28988843,58730.0,58723.0,0.10725655]
[1617674835591,0.28988843,58730.0,58728.0,0.36054448]
[1617674835592,0.00978453,58730.0,58728.0,0.36054448]
[1617674836188,0.29072637,58732.0,58728.0,0.36054448]
[1617674836488,0.0097905,58731.0,58729.0,0.36054208]
[1617674836889,0.29072637,58732.0,58724.0,0.50101363]
[1617674836890,0.29072637,58732.0,58730.0,0.36053984]
[1617674836891,0.00979922,58732.0,58730.0,0.36053984]
[1617674837188,0.00979922,58732.0,58731.0,0.10725655]
[1617674837389,0.00979922,58732.0,58731.0,0.46779461]
[1617674837890,0.29146737,58732.0,58731.0,0.10725655]
[1617674838892,3.53556737,58732.0,58731.0,0.10725655]
[1617674839092,6.03556737,58732.0,58730.0,0.36053099]
[1617674839392,6.03556737,58732.0,58720.0,0.09101626]
[1617674839393,3.28775804,58732.0,58720.0,0.09101626]
[1617674839611,3.28775804,58732.0,58697.0,0.70106423]
[1617674839612,0.8951012,58731.0,58711.0,0.09053806]
[1617674839836,0.2,58718.0,58711.0,0.09053806]
[1617674840002,0.2,58718.0,58695.0,0.20119569]
[1617674840003,1.5,58717.0,58698.0,0.50089781]
[1617674840202,1.29109871,58712.0,58698.0,0.50089781]
[1617674840393,1.5,58711.0,58698.0,0.50089781]
[1617674840594,0.00493999,58700.0,58699.0,0.06036845]
[1617674840795,0.14425999,58700.0,58699.0,0.05526845]
[1617674840997,0.14425999,58700.0,58689.0,0.4879]
[1617674840998,5.05278245,58700.0,58689.0,0.4879]
[1617674841195,5.160039,58700.0,58693.0,0.10725655]
[1617674841398,0.00493422,58694.0,58693.0,0.10725655]
[1617674841797,0.00977168,58695.0,58693.0,0.16763112]
[1617674841798,0.00493719,58695.0,58693.0,0.16763112]
[1617674842297,0.00493719,58695.0,58694.0,0.06037435]
[1617674842897,1.00493719,58695.0,58694.0,0.06037435]
[1617674843097,1.00493719,58695.0,58693.0,0.10725655]
[1617674843397,0.00977757,58696.0,58693.0,0.10725655]
[1617674843398,0.00494445,58696.0,58693.0,0.10725655]
[1617674844098,0.29101169,58696.0,58693.0,0.10725655]
[1617674844497,3.23025655,58700.0,58693.0,0.10725655]
[1617674844498,3.23520604,58700.0,58693.0,0.10725655]
[1617674845198,3.23025655,58700.0,58699.0,0.10725655]
[1617674845599,3.23520132,58700.0,58699.0,0.10725655]
[1617674845999,3.52126221,58700.0,58699.0,0.10725655]
[1617674846899,5.02126221,58700.0,58689.0,0.4879]
[1617674847157,5.02126221,58700.0,58676.0,0.56097818]
[1617674847158,0.10725655,58677.0,58676.0,0.56097818]
[1617674847409,0.10725655,58677.0,58675.0,0.09055877]
[1617674847410,0.10725655,58677.0,58659.0,0.10725655]
[1617674847412,0.10725655,58677.0,58665.0,0.56109906]
[1617674847414,1.75076655,58677.0,58665.0,0.56109906]
[1617674847598,3.3847,58666.0,58665.0,0.56109906]
[1617674847799,3.3847,58666.0,58660.0,0.56112514]
[1617674848204,3.3847,58666.0,58659.0,0.10725655]
[1617674848398,1.0,58665.0,58659.0,0.10725655]
[1617674848598,1.0,58664.0,58659.0,0.10725655]
[1617674848901,0.16415,58665.0,58659.0,0.10725655]
[1617674849099,1.10725655,58660.0,58659.0,0.10725655]
[1617674849799,0.10725655,58660.0,58659.0,0.10725655]
[1617674850514,1.60725655,58660.0,58659.0,0.10725655]
[1617674850723,2.60725655,58660.0,58659.0,0.10725655]
[1617674851301,1.60725655,58660.0,58659.0,0.10725655]
[1617674851603,2.60725655,58660.0,58659.0,0.10725655]
[1617674852303,1.60725655,58660.0,58659.0,0.10725655]
[1617674852703,2.60725655,58660.0,58659.0,0.10725655]
[1617674853805,1.60725655,58660.0,58659.0,0.10725655]
[1617674854407,2.60725655,58660.0,58659.0,0.10725655]
[1617674855307,1.60725655,58660.0,58653.0,0.10725655]
[1617674855608,2.60725655,58660.0,58651.0,0.4683]
[1617674855916,1.0,58654.0,58651.0,0.4683]
[1617674856213,1.0,58652.0,58651.0,0.4683]
[1617674856413,2.61171,58652.0,58651.0,0.4683]
[1617674857210,2.71896655,58652.0,58651.0,0.4683]
[1617674858611,1.71896655,58652.0,58651.0,0.4683]
[1617674858814,2.71896655,58652.0,58651.0,0.4683]
[1617674861113,1.21896655,58652.0,58651.0,0.4683]
[1617674861312,0.10725655,58652.0,58651.0,0.6683]
[1617674861513,0.10725655,58652.0,58651.0,0.78683]
[1617674861816,0.10725655,58652.0,58651.0,0.58683]
[1617674862016,2.95875655,58652.0,58651.0,0.58683]
[1617674862725,2.95875655,58652.0,58651.0,0.4683]
[1617674863415,2.8515,58652.0,58651.0,0.4683]
[1617674863615,2.8515,58652.0,58651.0,0.62354]
[1617674864745,2.8515,58652.0,58651.0,0.4683]
[1617674864932,4.3515,58652.0,58651.0,0.4683]
[1617674865130,5.3515,58652.0,58651.0,0.4683]
[1617674865316,5.45875655,58652.0,58651.0,0.4683]
[1617674865516,3.95875655,58652.0,58651.0,0.4683]
[1617674865916,5.45875655,58652.0,58651.0,0.4683]
[1617674868120,3.95875655,58652.0,58651.0,0.4683]
[1617674868519,2.95875655,58652.0,58651.0,0.4683]
[1617674868921,5.45875655,58652.0,58651.0,0.4683]
[1617674872425,3.95875655,58652.0,58651.0,0.4683]
[1617674872624,2.95875655,58652.0,58651.0,0.4683]
[1617674872825,3.95875655,58652.0,58651.0,0.4683]
[1617674873024,2.95875655,58652.0,58651.0,0.4683]
[1617674873839,3.95875655,58652.0,58651.0,0.4683]
[1617674874038,5.56278655,58652.0,58651.0,0.4683]
[1617674874943,4.06278655,58652.0,58651.0,0.4683]
[1617674875139,2.95875655,58652.0,58651.0,0.4683]
[1617674875330,2.95875655,58652.0,58651.0,0.57555655]
[1617674876631,4.45875655,58652.0,58651.0,0.4683]
[1617674876932,2.60725655,58652.0,58651.0,0.4683]
[1617674879533,1.10725655,58652.0,58651.0,0.4683]
[1617674881740,0.10725655,58652.0,58651.0,0.4683]